bitfinex/quotes_BTCUSD_20250410
["timestamp","ask_amount","ask_price","bid_price","bid_amount"]
[1744299897309,0.31272,79198.0,79193.0,0.252545]
[1744299897657,0.265176,79193.0,79191.0,0.00212744]
[1744299897851,0.252538,79196.0,79191.0,0.00212744]
[1744299897852,0.265164,79196.0,79191.0,0.00212744]
[1744299898051,0.012627,79193.0,79191.0,0.00212744]
[1744299898291,0.36293013,79195.0,79191.0,0.00212744]
[1744299898489,0.11038813,79195.0,79191.0,0.00212744]
[1744299898663,0.11038813,79195.0,79193.0,0.252544]
[1744299898985,0.31272,79198.0,79196.0,0.252537]
[1744299899189,1.29988,79205.0,79198.0,0.252531]
[1744299899392,0.12055382,79204.0,79202.0,0.252517]
[1744299899543,0.12055382,79204.0,79197.0,0.05]
[1744299899744,0.265157,79198.0,79194.0,0.05]
[1744299900013,0.265168,79195.0,79194.0,0.05]
[1744299900194,0.38572182,79195.0,79194.0,0.05]
[1744299900395,0.265177,79192.0,79191.0,0.00212744]
[1744299900621,0.477336,79192.0,79191.0,0.00212744]
[1744299900893,0.36716785,79191.0,79190.0,4.4e-07]
[1744299901038,0.48772167,79191.0,79190.0,0.00012796]
[1744299901235,0.02217581,79191.0,79190.0,0.00012796]
[1744299901440,0.02217581,79191.0,79190.0,0.06275496]
[1744299901688,0.40790963,79191.0,79190.0,0.00012796]
[1744299902137,0.38573382,79191.0,79190.0,0.00012796]
[1744299902277,0.81955848,79191.0,79190.0,0.00012796]
[1744299902481,0.83409933,79191.0,79190.0,0.00012796]
[1744299902773,0.73510834,79191.0,79190.0,0.00012796]
[1744299902942,0.37310682,79191.0,79190.0,0.00012796]
[1744299903142,0.38573382,79191.0,79190.0,0.00012796]
[1744299903354,0.13318082,79191.0,79190.0,0.00012796]
[1744299903527,0.38573382,79191.0,79190.0,0.00012796]
[1744299903954,0.52833416,79191.0,79190.0,0.00012796]
[1744299904162,0.52833416,79191.0,79178.0,0.0001683]
[1744299904163,0.605221,79179.0,79178.0,0.0001683]
[1744299904357,1.03861482,79179.0,79178.0,0.0001683]
[1744299904502,1.06078257,79179.0,79178.0,0.0001683]
[1744299904702,1.46078257,79179.0,79178.0,0.0001683]
[1744299904945,1.58121516,79179.0,79178.0,0.0001683]
[1744299905259,1.46078257,79179.0,79178.0,0.0001683]
[1744299905457,1.87518233,79179.0,79178.0,0.0001683]
[1744299906198,1.95092233,79179.0,79178.0,0.0001683]
[1744299906403,1.95092233,79179.0,79178.0,3e-07]
[1744299906404,1.88972318,79179.0,79178.0,3e-07]
[1744299906618,1.88972318,79179.0,79161.0,0.0027]
[1744299906826,0.61982485,79160.0,79159.0,3e-07]
[1744299907024,2.04089867,79160.0,79159.0,0.00012737]
[1744299907224,2.46306642,79160.0,79159.0,0.00012737]
[1744299907465,2.46306642,79160.0,79150.0,7.7e-07]
[1744299907466,0.27985585,79151.0,79150.0,7.7e-07]
[1744299907662,0.265325,79148.0,79147.0,9.7e-07]
[1744299907943,0.86085226,79148.0,79147.0,0.00012787]
[1744299908081,1.26916252,79148.0,79147.0,0.00012787]
[1744299908293,1.29133027,79148.0,79147.0,0.00012787]
[1744299908497,0.84421059,79148.0,79147.0,0.00012787]
[1744299908697,1.10953559,79148.0,79147.0,0.00012787]
[1744299908897,1.11053559,79148.0,79147.0,0.00012787]
[1744299909093,1.12360692,79148.0,79147.0,0.00012787]
[1744299909329,1.13601186,79148.0,79147.0,0.00012787]
[1744299909522,1.25844445,79148.0,79147.0,0.00012787]
[1744299909729,1.25844445,79148.0,79147.0,8.7e-07]
[1744299910134,1.25544445,79148.0,79147.0,8.7e-07]
[1744299910401,0.265379,79132.0,79131.0,0.00190061]
[1744299910520,0.72593282,79132.0,79131.0,0.00190061]
[1744299910718,0.76264142,79132.0,79131.0,0.00190061]
[1744299910919,0.36717785,79131.0,79130.0,0.17136161]
[1744299911148,0.52097075,79131.0,79130.0,6.1e-07]
[1744299911380,0.5526299,79131.0,79130.0,6.1e-07]
[1744299911583,0.265415,79121.0,79111.0,0.5]
[1744299911784,0.04265621,79131.0,79120.0,0.0521]
[1744299911993,0.01107133,79121.0,79120.0,0.0521]
[1744299912195,0.03323908,79121.0,79120.0,0.064739]
[1744299912937,0.03336624,79121.0,79120.0,0.317519]
[1744299913197,0.02229491,79121.0,79120.0,0.43807282]
[1744299913395,0.72433294,79150.0,79139.0,0.252719]
[1744299913597,0.12055382,79149.0,79141.0,0.252712]
[1744299913752,0.12055382,79149.0,79140.0,0.05]
[1744299913955,0.00012754,79150.0,79146.0,0.252697]
[1744299914328,0.00012754,79150.0,79149.0,0.0452]
[1744299914477,0.012636,79135.0,79124.0,0.0452]
[1744299914687,0.85752276,79134.0,79124.0,0.0952]
[1744299914904,0.012637,79132.0,79124.0,0.0452]
[1744299915128,0.12055382,79131.0,79124.0,0.0452]
[1744299915500,0.01106684,79130.0,79120.0,0.0021]
[1744299915706,0.01106684,79130.0,79124.0,0.05]
[1744299915707,0.13162066,79130.0,79124.0,0.05]
[1744299915917,0.13162066,79130.0,79127.0,0.05]
[1744299916122,0.13162066,79130.0,79123.0,0.05]
[1744299916298,0.265414,79122.0,79120.0,0.0021]
[1744299916501,0.12055382,79121.0,79120.0,0.0021]
[1744299916857,0.012639,79114.0,79113.0,0.01687312]
[1744299917140,0.72599182,79114.0,79113.0,0.01687312]
[1744299917280,0.38599182,79114.0,79113.0,0.01687312]
[1744299917485,0.40808821,79114.0,79113.0,0.01729824]
[1744299917685,0.15093941,79114.0,79113.0,0.01729824]
[1744299917953,0.17462332,79114.0,79113.0,0.01729824]
[1744299918137,0.15252693,79114.0,79113.0,0.01729824]
[1744299918342,0.13988793,79114.0,79113.0,0.01729824]
[1744299918513,0.15252693,79114.0,79113.0,0.01729824]
[1744299918718,0.17461768,79114.0,79113.0,0.01729824]
[1744299919149,0.16197868,79114.0,79113.0,0.01729824]
[1744299919315,0.42741668,79114.0,79113.0,0.01729824]
[1744299919518,0.42741668,79114.0,79113.0,0.01739824]
[1744299919973,0.16197868,79114.0,79113.0,0.01749824]
[1744299920320,0.17461768,79114.0,79113.0,0.01749824]
[1744299920546,0.04142486,79114.0,79113.0,0.01759824]
[1744299920954,0.16197868,79114.0,79113.0,0.01759824]
[1744299921158,0.15368948,79114.0,79113.0,0.01769824]
[1744299921495,0.15368948,79114.0,79113.0,0.01779824]
[1744299922013,0.22467173,79114.0,79113.0,0.01789824]
[1744299922217,0.5856019,79114.0,79113.0,0.01789824]
[1744299922441,0.5856019,79114.0,79113.0,0.01799824]
[1744299922814,0.16198065,79114.0,79113.0,0.01799824]
[1744299923081,0.16198065,79114.0,79113.0,0.01809824]
[1744299923428,0.16198065,79114.0,79113.0,0.01819824]
[1744299923880,0.16198065,79114.0,79113.0,0.01829824]
[1744299923881,0.76741865,79114.0,79113.0,0.01829824]
[1744299924240,0.50198065,79114.0,79113.0,0.01829824]
[1744299924450,0.56734552,79114.0,79113.0,0.01829824]
[1744299924953,0.58188637,79114.0,79113.0,0.01829824]
[1744299925149,0.56734552,79114.0,79113.0,0.01829824]
[1744299925352,0.51461965,79114.0,79113.0,0.01829824]
[1744299925879,0.5291605,79114.0,79113.0,0.01829824]
[1744299926453,0.51461965,79114.0,79113.0,0.01829824]
[1744299927129,0.51461965,79114.0,79111.0,0.5]
[1744299927130,0.01264,79112.0,79111.0,0.40535565]
[1744299927317,0.12055382,79112.0,79111.0,0.40535565]
[1744299927517,0.14264457,79112.0,79111.0,0.40535565]
[1744299927665,0.15093574,79112.0,79111.0,0.40535565]
[1744299927865,0.16198065,79112.0,79111.0,0.40535565]
[1744299929133,0.17462065,79112.0,79111.0,0.40535565]
[1744299929309,0.51462065,79112.0,79111.0,0.40535565]
[1744299929711,0.51462065,79112.0,79111.0,0.40545565]
[1744299929917,0.5291615,79112.0,79111.0,0.40545565]
[1744299930151,0.5291615,79112.0,79111.0,0.40555565]
[1744299930357,0.64959409,79112.0,79111.0,0.40555565]
[1744299930699,0.64959409,79112.0,79111.0,0.26760377]
[1744299930919,0.50198065,79112.0,79111.0,0.26127904]
[1744299931120,0.51462065,79112.0,79111.0,0.26137904]
[1744299931326,0.50632948,79112.0,79111.0,0.26137904]
[1744299931518,0.50632948,79112.0,79111.0,0.26147904]
[1744299932153,0.92087033,79112.0,79111.0,0.26157904]
[1744299932340,1.04130292,79112.0,79111.0,0.26157904]
[1744299932567,1.04130292,79112.0,79111.0,0.26167904]
[1744299932967,0.605458,79108.0,79107.0,0.0001683]
[1744299933144,0.265379,79102.0,79101.0,0.002]
[1744299933343,0.38593282,79102.0,79101.0,0.002]
[1744299933546,0.39697773,79102.0,79101.0,0.002]
[1744299934586,0.13159873,79102.0,79101.0,0.002]
[1744299935286,0.14448656,79102.0,79101.0,0.0021]
[1744299935494,0.14448656,79102.0,79101.0,0.0022]
[1744299936027,0.14448656,79102.0,79101.0,0.0023]
[1744299936229,0.14448656,79102.0,79101.0,0.0024]
[1744299936525,0.15712756,79102.0,79101.0,0.0024]
[1744299936729,0.01104491,79102.0,79101.0,0.015142]
[1744299936896,0.00042512,79114.0,79113.0,0.315442]
[1744299937094,0.000337,79146.0,79145.0,0.315335]
[1744299937549,0.00046454,79146.0,79145.0,0.315335]
[1744299939009,0.00046454,79146.0,79144.0,0.012635]
[1744299939335,0.00046454,79146.0,79145.0,0.062635]
[1744299939625,0.00046454,79146.0,79145.0,0.062735]
[1744299940206,0.00046454,79146.0,79145.0,0.3028]
[1744299940411,0.00046454,79146.0,79145.0,0.315435]
[1744299941198,0.00046454,79146.0,79145.0,0.0001]
[1744299941398,0.00046454,79146.0,79145.0,0.315435]
[1744299941605,0.72433294,79180.0,79170.0,0.05]
[1744299941606,0.012629,79180.0,79170.0,0.05]
[1744299941803,0.00012754,79178.0,79177.0,0.05]
[1744299942005,0.00012754,79178.0,79171.0,0.252617]
[1744299942006,0.012633,79155.0,79145.0,0.0501]
[1744299942238,0.72433294,79170.0,79164.0,0.25264]
[1744299942412,0.12055382,79169.0,79167.0,0.252627]
[1744299942637,0.00012754,79178.0,79167.0,0.05]
[1744299942800,0.12055382,79177.0,79167.0,0.05]
[1744299943000,0.25262,79171.0,79157.0,0.252659]
[1744299943331,0.25262,79171.0,79130.0,0.505493]
[1744299943332,0.84488676,79170.0,79167.0,0.05]
[1744299943512,0.12055382,79170.0,79167.0,0.05]
[1744299943724,0.12055382,79170.0,79167.0,0.302627]
[1744299943924,0.12055382,79170.0,79165.0,0.05]
[1744299944154,0.12055382,79170.0,79164.0,0.05]
[1744299944314,0.12055382,79170.0,79145.0,0.012735]
[1744299944519,0.72433294,79160.0,79148.0,0.05]
[1744299944718,0.72433294,79160.0,79145.0,0.0001]
[1744299944719,0.252697,79146.0,79145.0,0.0001]
[1744299944926,0.38588482,79146.0,79145.0,0.0001]
[1744299945148,1.12588482,79146.0,79145.0,0.0001]
[1744299945350,1.24631741,79146.0,79145.0,0.0001]
[1744299945747,0.96230077,79146.0,79145.0,0.0001]
[1744299945990,0.96230077,79146.0,79118.0,0.05]
[1744299945991,0.73696994,79131.0,79118.0,0.05]
[1744299946177,0.13319082,79130.0,79118.0,0.05012754]
[1744299946346,0.265399,79126.0,79118.0,0.05012754]
[1744299946657,0.12055382,79125.0,79118.0,0.05012754]
[1744299946862,0.012635,79140.0,79130.0,0.252748]
[1744299947062,0.12055382,79139.0,79126.0,0.05]
[1744299947313,0.12055382,79139.0,79136.0,0.252729]
[1744299947515,0.12055382,79139.0,79135.0,0.05]
[1744299948435,1.3014,79159.0,79145.0,0.315332]
[1744299948655,1.3014,79159.0,79158.0,0.05]
[1744299948815,0.252624,79169.0,79159.0,0.252656]
[1744299949022,0.12055382,79168.0,79159.0,0.302656]
[1744299949223,0.12055382,79168.0,79150.0,0.012634]
[1744299949224,0.12055382,79168.0,79166.0,0.25249137]
[1744299949383,0.12055382,79168.0,79160.0,0.252652]
[1744299949384,0.000337,79176.0,79174.0,0.05]
[1744299949584,0.000337,79176.0,79174.0,0.315238]
[1744299949785,0.12432226,79175.0,79174.0,0.315238]
[1744299950391,0.12432226,79175.0,79174.0,0.302608]
[1744299950590,0.12432226,79175.0,79174.0,0.315238]
[1744299951586,0.00012752,79175.0,79174.0,0.315238]
[1744299953827,5.2e-07,79175.0,79174.0,0.43579182]
[1744299954068,5.2e-07,79176.0,79175.0,0.11203]
[1744299954273,0.002,79189.0,79175.0,0.11203]
[1744299954274,0.002,79189.0,79188.0,0.062628]
[1744299954477,0.000336,79194.0,79193.0,0.265174]
[1744299954701,0.000336,79194.0,79193.0,0.315174]
[1744299954834,0.000336,79194.0,79193.0,0.302547]
[1744299955058,0.000336,79194.0,79193.0,0.315174]
[1744299955976,1.314023,79216.0,79206.0,0.05]
[1744299956186,1.314023,79216.0,79205.0,0.252508]
[1744299956187,0.4,79213.0,79207.0,0.05]
[1744299956387,0.12055382,79212.0,79205.0,0.05]
[1744299956586,0.12055382,79212.0,79207.0,0.05]
[1744299956996,0.12055382,79212.0,79205.0,0.05]
[1744299957336,0.12055382,79212.0,79209.0,0.252496]
[1744299957538,0.00042522,79214.0,79212.0,0.252486]
[1744299958690,0.00042522,79214.0,79213.0,0.062624]
[1744299959993,0.01262,79237.0,79212.0,0.252586]
[1744299959994,0.252428,79231.0,79225.0,0.05]
[1744299960300,0.13317482,79230.0,79225.0,0.05]
[1744299960497,0.12055382,79230.0,79225.0,0.05]
[1744299960695,0.01240457,79235.0,79229.0,0.30243]
[1744299960901,0.265107,79213.0,79212.0,0.0001]
[1744299961147,0.13317782,79213.0,79212.0,0.0001]
[1744299961543,0.14280115,79213.0,79212.0,0.0001]
[1744299962125,0.14292859,79213.0,79212.0,0.0001]
[1744299962753,0.14292859,79213.0,79212.0,0.252586]
[1744299962754,0.13030459,79213.0,79212.0,0.252586]
[1744299962925,0.00012744,79213.0,79212.0,0.302586]
[1744299963130,2.744e-05,79213.0,79212.0,0.0501]
[1744299963710,0.12058126,79213.0,79212.0,0.0001]
[1744299964151,0.12058126,79213.0,79212.0,0.302586]
[1744299964152,2.744e-05,79213.0,79212.0,0.302586]
[1744299965066,2.744e-05,79213.0,79212.0,0.31521]
[1744299965264,2.744e-05,79213.0,79212.0,0.302586]
[1744299965468,2.744e-05,79213.0,79212.0,0.0501]
[1744299965671,0.12058126,79213.0,79212.0,0.0501]
[1744299965992,0.13320526,79213.0,79212.0,0.0001]
[1744299966219,0.13320526,79213.0,79212.0,0.0501]
[1744299966220,0.40002744,79213.0,79212.0,0.0501]
[1744299966403,0.13320526,79213.0,79212.0,0.0501]
[1744299966604,0.12058126,79213.0,79212.0,0.0501]
[1744299966812,2.744e-05,79213.0,79212.0,0.07351012]
[1744299967234,2.744e-05,79213.0,79212.0,0.08613412]
[1744299967612,2.744e-05,79213.0,79212.0,0.08865884]
[1744299967777,2.744e-05,79213.0,79212.0,0.08613412]
[1744299967978,2.744e-05,79213.0,79212.0,0.07351012]
[1744299968829,2.744e-05,79213.0,79212.0,0.0501]
[1744299969180,0.21533369,79225.0,79216.0,0.252473]
[1744299969381,0.012624,79213.0,79212.0,0.0001]
[1744299969584,0.012628,79189.0,79180.0,0.0001675]
[1744299969828,0.12055382,79188.0,79180.0,0.0001675]
[1744299970036,0.12055382,79188.0,79182.0,0.252581]
[1744299970202,0.4,79187.0,79180.0,0.0001675]
[1744299970408,0.12055382,79186.0,79181.0,0.05]
[1744299970612,0.265205,79184.0,79180.0,0.0001675]
[1744299970837,0.12055382,79183.0,79181.0,0.05]
[1744299971024,0.12055382,79183.0,79180.0,0.0001675]
[1744299971288,0.252584,79182.0,79180.0,0.0001675]
[1744299971461,9.103e-05,79186.0,79182.0,0.252581]
[1744299971660,9.103e-05,79186.0,79185.0,0.05]
[1744299971880,9.103e-05,79186.0,79185.0,0.062628]
[1744299972625,9.103e-05,79186.0,79185.0,0.0651537]
[1744299972918,9.103e-05,79186.0,79185.0,0.062628]
[1744299973542,9.103e-05,79186.0,79185.0,0.06515352]
[1744299973779,0.01242046,79235.0,79232.0,0.25242]
[1744299973982,0.72433294,79242.0,79231.0,0.05]
[1744299974203,0.84488676,79241.0,79231.0,0.05]
[1744299974351,0.01262,79237.0,79231.0,0.05]
[1744299974551,0.252413,79235.0,79232.0,0.05]
[1744299974776,0.72433294,79241.0,79234.0,0.05]
[1744299975015,0.12055382,79240.0,79236.0,0.05]
[1744299975217,0.00012744,79241.0,79240.0,0.05]
[1744299975373,0.12068126,79241.0,79240.0,0.05]
[1744299975824,0.252424,79232.0,79225.0,0.05]
[1744299976110,0.12055382,79231.0,79228.0,0.05]
[1744299976239,0.12055382,79230.0,79226.0,0.05]
[1744299976441,0.13317482,79230.0,79226.0,0.05]
[1744299976638,0.012621,79228.0,79226.0,0.05]
[1744299976886,0.12055382,79227.0,79226.0,0.05]
[1744299977083,0.012621,79233.0,79226.0,0.05]
[1744299977084,0.012618,79246.0,79236.0,0.05]
[1744299977283,0.12068126,79241.0,79240.0,0.252397]
[1744299977461,0.12068126,79241.0,79240.0,0.05]
[1744299977685,0.52068126,79241.0,79240.0,0.05]
[1744299977880,0.00012744,79241.0,79240.0,0.05]
[1744299978892,0.00012744,79241.0,79211.0,0.252489]
[1744299978893,0.012623,79220.0,79211.0,0.252489]
[1744299979210,0.25246,79221.0,79209.0,0.05]
[1744299979211,0.012623,79216.0,79209.0,0.05]
[1744299979529,0.265063,79227.0,79214.0,0.302477]
[1744299979829,0.12045073,79226.0,79220.0,0.252458]
[1744299979987,0.252414,79235.0,79226.0,0.252442]
[1744299980194,0.12055382,79234.0,79232.0,0.05]
[1744299980413,0.12055382,79234.0,79232.0,0.302422]
[1744299981014,0.252423,79232.0,79229.0,0.05]
[1744299981214,0.72433294,79242.0,79186.0,0.0959]
[1744299981215,0.12055382,79231.0,79230.0,0.05]
[1744299981447,0.012621,79228.0,79212.0,0.012624]
[1744299981657,0.12055382,79227.0,79226.0,0.05]
[1744299981851,0.73695194,79240.0,79232.0,0.05]
[1744299982052,0.012622,79221.0,79219.0,0.05]
[1744299982269,0.012625,79207.0,79200.0,0.252525]
[1744299982469,0.012625,79207.0,79187.0,0.012628]
[1744299982470,0.012627,79195.0,79183.0,0.252577]
[1744299982670,0.012628,79185.0,79180.0,0.0001675]
[1744299982864,0.012627,79191.0,79180.0,0.0001675]
[1744299982865,0.97689194,79190.0,79189.0,0.05]
[1744299983108,0.01276174,79194.0,79189.0,0.05]
[1744299983227,0.01276174,79194.0,79193.0,0.05]
[1744299983424,0.12055382,79194.0,79189.0,0.252558]
[1744299983625,0.265177,79192.0,79191.0,0.05]
[1744299983924,0.12055382,79192.0,79191.0,0.05]
[1744299984963,0.012627,79190.0,79181.0,0.252585]
[1744299985126,0.012629,79181.0,79180.0,0.00059272]
[1744299985334,0.13318282,79181.0,79180.0,0.00059272]
[1744299985889,0.13318282,79181.0,79153.0,0.05]
[1744299985890,0.265278,79162.0,79153.0,0.05]
[1744299986097,0.265284,79160.0,79153.0,0.05]
[1744299986264,0.38583782,79160.0,79153.0,0.05]
[1744299986456,0.38583782,79160.0,79159.0,0.00029103]
[1744299986457,0.39525306,79160.0,79159.0,0.00029103]
[1744299986652,0.73525306,79160.0,79159.0,0.00029103]
[1744299986876,1.49719191,79160.0,79159.0,0.00029103]
[1744299987078,1.06918891,79160.0,79159.0,0.00029103]
[1744299987276,1.1184775,79160.0,79159.0,0.00029103]
[1744299987499,1.4798485,79160.0,79159.0,0.00029103]
[1744299987700,1.25408491,79160.0,79159.0,0.00029103]
[1744299988138,1.25408491,79160.0,79131.0,0.254743]
[1744299988139,0.265375,79133.0,79132.0,0.0501677]
[1744299988342,0.12055382,79133.0,79132.0,0.05029522]
[1744299988548,0.38592882,79133.0,79132.0,0.05029522]
[1744299988853,0.12055382,79133.0,79132.0,0.05029522]
[1744299989059,0.72433294,79142.0,79132.0,0.30303722]
[1744299989260,0.252732,79135.0,79134.0,0.05]
[1744299989467,0.252732,79135.0,79132.0,0.00029522]
[1744299989468,0.252735,79134.0,79132.0,0.00029522]
[1744299989722,0.38592882,79133.0,79132.0,0.00029522]
[1744299989892,0.12055382,79133.0,79132.0,0.05029522]
[1744299990102,1.3006,79140.0,79139.0,0.05]
[1744299990310,1.42115382,79140.0,79139.0,0.05]
[1744299990507,1.42115382,79140.0,79136.0,0.05]
[1744299990508,0.012635,79139.0,79136.0,0.05]
[1744299990706,0.012635,79139.0,79132.0,0.05029522]
[1744299990707,0.265375,79133.0,79132.0,0.05029522]
[1744299990993,0.38592882,79133.0,79132.0,0.00029522]
[1744299991544,0.12055382,79133.0,79132.0,0.30303722]
[1744299991760,1.3006,79140.0,79137.0,0.252724]
[1744299991942,1.3006,79140.0,79136.0,0.05]
[1744299991943,0.39540173,79139.0,79136.0,0.05]
[1744299992159,0.265362,79137.0,79136.0,0.05]
[1744299992322,0.12055382,79137.0,79136.0,0.05]
[1744299992750,0.14266868,79137.0,79133.0,0.23049209]
[1744299992921,0.14266868,79137.0,79132.0,0.00029522]
[1744299992922,0.252735,79134.0,79132.0,0.00029522]
[1744299993102,0.12055382,79133.0,79132.0,0.00029522]
[1744299993631,1.313235,79140.0,79132.0,0.252742]
[1744299993837,0.12055382,79138.0,79132.0,0.252742]
[1744299994012,1.3006,79140.0,79139.0,0.012635]
[1744299994221,0.012635,79139.0,79132.0,0.252742]
[1744299994426,0.12055382,79138.0,79135.0,0.252729]
[1744299994647,0.12055382,79138.0,79136.0,0.252727]
[1744299994822,1.3006,79140.0,79139.0,0.252719]
[1744299995033,1.3006,79140.0,79134.0,0.252729]
[1744299995251,1.3006,79140.0,79138.0,0.252721]
[1744299995658,1.3006,79140.0,79139.0,0.012635]
[1744299996480,0.73696394,79170.0,79159.0,0.252656]
[1744299996669,0.41439976,79171.0,79170.0,0.25262]
[1744299996836,0.41439976,79171.0,79161.0,0.012632]
[1744299997034,0.012631,79165.0,79149.0,0.012634]
[1744299997247,0.12055382,79165.0,79151.0,0.012634]
[1744299997440,0.12055382,79165.0,79163.0,0.252641]
[1744299997640,0.37319282,79165.0,79159.0,0.252653]
[1744299997844,0.4,79164.0,79151.0,0.012634]
[1744299998045,0.4,79164.0,79162.0,0.252645]
[1744299998609,0.252603,79176.0,79169.0,0.252624]
[1744299998971,0.0001274,79170.0,79169.0,0.252624]
[1744299999167,0.0001274,79170.0,79169.0,0.265255]
[1744299999711,0.0001274,79170.0,79169.0,0.252624]
[1744299999914,0.012631,79168.0,79150.0,0.012634]
[1744300000112,0.0001274,79170.0,79168.0,0.252627]
[1744300001181,0.37317982,79169.0,79164.0,0.252638]
[1744300001381,0.0001274,79170.0,79164.0,0.252638]
[1744300001600,0.0001274,79170.0,79169.0,0.252624]
[1744300001742,0.0001274,79170.0,79164.0,0.252638]
[1744300001943,0.11227819,79169.0,79148.0,0.012634]
[1744300002142,0.012632,79159.0,79139.0,0.012635]
[1744300002348,0.37321282,79158.0,79148.0,0.012634]
[1744300002549,0.12055382,79158.0,79154.0,0.25267]
[1744300002856,0.252634,79166.0,79161.0,0.252647]
[1744300003062,0.41439976,79167.0,79161.0,0.252647]
[1744300003269,0.41439976,79167.0,79165.0,0.252634]
[1744300003468,0.0001274,79170.0,79166.0,0.252633]
[1744300003670,0.0001274,79170.0,79151.0,0.012634]
[1744300003671,0.12055382,79169.0,79151.0,0.012634]
[1744300003889,0.72446034,79170.0,79165.0,0.252635]
[1744300004112,0.265266,79166.0,79161.0,0.252647]
[1744300004320,0.252674,79154.0,79149.0,0.252687]
[1744300004557,0.252657,79159.0,79149.0,0.252687]
[1744300004787,0.252661,79158.0,79153.0,0.252673]
[1744300004964,0.252661,79158.0,79146.0,0.265328]
[1744300004965,0.25267,79155.0,79151.0,0.25268]
[1744300005169,0.12055382,79155.0,79152.0,0.252677]
[1744300005373,0.12055382,79155.0,79145.0,0.252698]
[1744300005576,0.012632,79161.0,79143.0,0.012635]
[1744300005774,0.252652,79160.0,79148.0,0.012634]
[1744300005976,0.252652,79160.0,79156.0,0.252664]
[1744300006574,0.012632,79159.0,79140.0,0.012635]
[1744300006716,0.012635,79142.0,79131.0,0.06023222]
[1744300006917,0.19592855,79159.0,79131.0,0.00129522]
[1744300006918,0.72433294,79141.0,79131.0,0.00129522]
[1744300007218,0.12055382,79159.0,79149.0,0.012634]
[1744300007442,0.012632,79159.0,79154.0,0.252669]
[1744300007664,0.73696494,79160.0,79148.0,0.012634]
[1744300007665,0.72433294,79160.0,79148.0,0.012634]
[1744300007868,1.313751,79166.0,79154.0,0.012633]
[1744300008072,0.252662,79158.0,79150.0,0.252682]
[1744300008228,0.252657,79159.0,79156.0,0.252665]
[1744300008445,0.012634,79149.0,79144.0,0.252703]
[1744300008650,0.265317,79151.0,79142.0,0.252708]
[1744300008912,0.012634,79151.0,79146.0,0.252696]
[1744300009135,0.02227273,79150.0,79146.0,0.252696]
[1744300009303,0.02227273,79150.0,79145.0,0.252699]
[1744300009599,0.252687,79149.0,79145.0,0.2527]
[1744300009811,0.02227273,79150.0,79141.0,0.012635]
[1744300009987,0.012634,79147.0,79137.0,0.012636]
[1744300010192,0.012634,79147.0,79136.0,0.012636]
[1744300010193,0.012635,79139.0,79138.0,0.00012754]
[1744300010392,0.265354,79139.0,79138.0,0.00012754]
[1744300010590,0.28762673,79139.0,79138.0,0.00012754]
[1744300011379,0.42432669,79139.0,79138.0,0.00012754]
[1744300011575,0.42432669,79139.0,79131.0,0.00129522]
[1744300011576,0.9279133,79139.0,79131.0,0.00129522]
[1744300011801,0.9279133,79139.0,79122.0,7e-07]
[1744300011802,0.61994985,79123.0,79122.0,7e-07]
[1744300012011,0.01264,79110.0,79106.0,0.0001678]
[1744300012191,0.012639,79116.0,79106.0,0.00059292]
[1744300012192,0.02227273,79109.0,79106.0,0.00059292]
[1744300012546,0.012641,79107.0,79106.0,0.00059292]
[1744300012753,0.26546,79108.0,79106.0,0.00059292]
[1744300012926,0.03491373,79107.0,79106.0,0.00059292]
[1744300013255,0.02227273,79107.0,79106.0,0.00059292]
[1744300013751,0.02227273,79107.0,79106.0,0.01323392]
[1744300013908,7.3e-07,79107.0,79106.0,0.13631579]
[1744300014116,0.012634,79146.0,79106.0,0.13631579]
[1744300014117,0.72433294,79150.0,79139.0,0.012635]
[1744300014311,0.265348,79141.0,79135.0,0.252731]
[1744300014513,0.252713,79141.0,79135.0,0.252731]
[1744300014859,0.265334,79146.0,79133.0,0.252737]
[1744300014860,0.265325,79148.0,79142.0,0.252709]
[1744300015010,1.14033494,79149.0,79134.0,0.012636]
[1744300015210,0.016002,79149.0,79148.0,0.252691]
[1744300015424,0.00012737,79149.0,79148.0,0.252691]
[1744300015634,0.00012737,79149.0,79138.0,0.012636]
[1744300015859,0.72433294,79148.0,79147.0,0.252692]
[1744300016211,0.72433294,79148.0,79138.0,0.265355]
[1744300016212,0.00012737,79149.0,79139.0,0.252717]
[1744300016344,0.252691,79148.0,79144.0,0.252702]
[1744300016548,0.98978531,79149.0,79144.0,0.252702]
[1744300016823,0.265341,79144.0,79134.0,0.012636]
[1744300016971,0.252695,79147.0,79143.0,0.252704]
[1744300017167,0.252702,79145.0,79140.0,0.252714]
[1744300017377,0.012635,79143.0,79137.0,0.252723]
[1744300017569,0.252703,79144.0,79139.0,0.252718]
[1744300018075,0.252703,79144.0,79133.0,0.265375]
[1744300018076,0.252705,79144.0,79140.0,0.252715]
[1744300018489,0.01608833,79149.0,79142.0,0.012635]
[1744300018691,0.00012737,79149.0,79147.0,0.252693]
[1744300018853,0.00012737,79149.0,79148.0,0.012634]
[1744300019055,0.00012737,79149.0,79147.0,0.252693]
[1744300019276,0.012634,79147.0,79142.0,0.252707]
[1744300019651,0.00012737,79149.0,79146.0,0.252696]
[1744300019856,0.01612862,79154.0,79150.0,0.252683]
[1744300019988,0.01612862,79154.0,79153.0,0.252675]
[1744300020192,1.30124,79156.0,79153.0,0.252675]
[1744300020397,0.97692194,79180.0,79174.0,0.252606]
[1744300020711,0.012631,79165.0,79130.0,0.05]
[1744300020911,0.12055382,79179.0,79159.0,0.252656]
[1744300020912,0.72433294,79160.0,79159.0,0.252656]
[1744300021115,0.72433294,79170.0,79167.0,0.25263]
[1744300021317,0.12055382,79179.0,79168.0,0.252624]
[1744300021494,0.252595,79178.0,79175.0,0.252604]
[1744300021722,0.252608,79174.0,79169.0,0.252621]
[1744300021931,0.00212752,79180.0,79171.0,0.01263]
[1744300022284,0.00212752,79180.0,79178.0,0.252593]
[1744300022824,0.01826088,79180.0,79178.0,0.252593]
[1744300023030,0.252592,79179.0,79173.0,0.252609]
[1744300023310,0.012629,79179.0,79173.0,0.252609]
[1744300023444,0.01726088,79180.0,79176.0,0.2526]
[1744300023674,0.01726088,79180.0,79167.0,0.012631]
[1744300023877,0.252629,79168.0,79159.0,0.012632]